fUST/lending_fUST_20250202
["ID","MTS","AMOUNT","RATE_DAILY","PERIOD"]
[351232276,1738460963217,-500.0,0.00016575,2]
[351232277,1738460963239,-500.0,0.00016575,2]
[351232278,1738460963262,-500.0,0.00016575,2]
[351232279,1738460963283,-310.25949028,0.00016575,2]
[351232280,1738460963304,-513.480853,0.00016575,2]
[351232281,1738460963325,-507.0558345,0.00016575,2]
[351232282,1738460963346,-508.14321166,0.00016575,2]
[351232283,1738460963368,-500.0,0.00016575,2]
[351232284,1738460963398,-505.43293167,0.00016575,2]
[351232285,1738460963420,-515.31531989,0.00016575,2]
[351232286,1738460963442,-509.970757,0.00016575,2]
[351232287,1738460963464,-254.3357384,0.00016575,2]
[351232288,1738460963485,-534.98875538,0.00016575,2]
[351232289,1738460963508,-613.34,0.00016575,2]
[351232290,1738460963528,-500.0,0.00016575,2]
[351232291,1738460963549,-544.23005665,0.00016575,2]
[351232292,1738460963570,-500.0,0.00016575,2]
[351232293,1738460963591,-500.0,0.00016575,2]
[351232294,1738460963611,-506.76075672,0.00016575,2]
[351232295,1738460963632,-500.0,0.00016575,2]
[351232296,1738460963656,-945.6,0.00016575,2]
[351232297,1738460963676,-500.0,0.00016575,2]
[351232298,1738460963697,-500.0,0.00016575,2]
[351232299,1738460963718,-12285.8,0.00016575,2]
[351232300,1738460963739,-500.0,0.00016575,2]
[351232301,1738460963761,-2080.07,0.00016575,2]
[351232302,1738460963782,-306.56195816,0.00016575,2]
[351232303,1738460963804,-500.0,0.00016575,2]
[351232304,1738460963828,-500.0,0.00016575,2]
[351232305,1738460963849,-509.74799894,0.00016575,2]
[351232306,1738460963872,-500.0,0.00016575,2]
[351232307,1738460963893,-500.0,0.00016575,2]
[351232308,1738460963917,-519.58,0.00016575,2]
[351232309,1738460963939,-500.0,0.00016575,2]
[351232310,1738460963961,-505.7804481,0.00016575,2]
[351232311,1738460963983,-500.0,0.00016575,2]
[351232312,1738460964004,-507.01782419,0.00016575,2]
[351232313,1738460964026,-500.0,0.00016575,2]
[351232314,1738460964047,-586.46444235,0.00016575,2]
[351232315,1738460964071,-500.0,0.00016575,2]
[351232316,1738460964092,-504.8616152,0.00016575,2]
[351232317,1738460964113,-507.35036282,0.00016575,2]
[351232318,1738460964136,-500.0,0.00016575,2]
[351232319,1738460964158,-502.35594509,0.00016575,2]
[351232320,1738460964180,-507.56312182,0.00016575,2]
[351232321,1738460964202,-501.01365762,0.00016575,2]
[351232322,1738460964225,-578.64,0.00016575,2]
[351232323,1738460964251,-500.0,0.00016575,2]
[351232324,1738460964275,-500.0,0.00016575,2]
[351232325,1738460964297,-563.04153718,0.00016575,2]
[351232326,1738460964319,-500.0,0.00016575,2]
[351232327,1738460964341,-500.0,0.00016575,2]
[351232328,1738460964364,-1567.03,0.00016575,2]
[351232329,1738460964387,-500.0,0.00016575,2]
[351232330,1738460964412,-3985.31,0.00016575,2]
[351232331,1738460964433,-522.04626537,0.00016575,2]
[351232332,1738460964455,-500.0,0.00016575,2]
[351232333,1738460964477,-500.0,0.00016575,2]
[351232334,1738460964500,-504.49281354,0.00016575,2]
[351232335,1738460964523,-506.93461482,0.00016575,2]
[351232336,1738460964543,-500.0,0.00016575,2]
[351232337,1738460964564,-509.01594814,0.00016575,2]
[351232338,1738460964585,-500.0,0.00016575,2]
[351232339,1738460964605,-500.0,0.00016575,2]
[351232340,1738460964626,-504.94004601,0.00016575,2]
[351232341,1738460964647,-508.26129423,0.00016575,2]
[351232342,1738460964669,-504.19109829,0.00016575,2]
[351232343,1738460964689,-509.14471156,0.00016575,2]
[351232344,1738460964710,-506.00367714,0.00016575,2]
[351232345,1738460964730,-500.0,0.00016575,2]
[351232346,1738460964750,-500.0,0.00016575,2]
[351232347,1738460964773,-506.29707545,0.00016575,2]
[351232348,1738460964872,-500.0,0.00016575,2]
[351232349,1738460964897,-501.59824432,0.00016575,2]
[351232350,1738460964919,-500.0,0.00016575,2]
[351232351,1738460964942,-500.0,0.00016575,2]
[351232352,1738460964963,-500.0,0.00016575,2]
[351232353,1738460964983,-260.77,0.00016575,2]
[351232354,1738460965004,-500.0,0.0001671,2]
[351232355,1738460965024,-500.0,0.0001671,2]
[351232356,1738460965046,-3573.74,0.0001671,2]
[351232357,1738460965066,-500.0,0.00016711,2]
[351232358,1738460965086,-500.0,0.00016711,2]
[351232359,1738460965107,-3573.74,0.00016711,2]
[351232360,1738460965129,-625.71264236,0.00016711,2]
[351232361,1738460965149,-500.0,0.00016712,2]
[351232362,1738460965171,-507.67443854,0.00016712,2]
[351232363,1738460965191,-500.0,0.00016712,2]
[351232364,1738460965212,-528.43807909,0.00016712,2]
[351232365,1738460965231,-504.33415084,0.00016712,2]
[351232366,1738460965252,-500.0,0.00016712,2]
[351232367,1738460965273,-500.0,0.00016712,2]
[351232368,1738460965293,-228.90953266,0.00016712,2]
[351232369,1738460965314,-500.0,0.00016712,2]
[351232370,1738460965334,-501.13339162,0.00016712,2]
[351232371,1738460965355,-512.36609224,0.00016712,2]
[351232372,1738460965375,-501.49598283,0.00016712,2]
[351232373,1738460965396,-500.0,0.00016712,2]
[351232374,1738460965419,-500.0,0.00016712,2]
[351232375,1738460965439,-500.0,0.00016712,2]
[351232376,1738460965460,-500.0,0.00016712,2]
[351232377,1738460965482,-500.0,0.00016712,2]
[351232378,1738460965501,-503.78931429,0.00016712,2]
[351232379,1738460965523,-500.0,0.00016712,2]
[351232380,1738460965543,-500.0,0.00016712,2]
[351232381,1738460965563,-500.0,0.00016712,2]
[351232382,1738460965583,-342.19807783,0.00016712,2]
[351232383,1738460965603,-266.67256438,0.00016712,2]
[351232384,1738460965624,-343.67616132,0.00016712,2]
[351232385,1738460965644,-502.88701091,0.00016712,2]
[351232386,1738460965665,-512.03276949,0.00016712,2]
[351232387,1738460965686,-500.0,0.00016712,2]
[351232388,1738460965712,-502.77117916,0.00016712,2]
[351232389,1738460965746,-502.76000953,0.00016712,2]
[351232390,1738460965776,-500.0,0.00016712,2]
[351232391,1738460965810,-509.09952388,0.00016712,2]
[351232392,1738460965848,-429.32315534,0.00016712,2]
[351232393,1738460965879,-505.03301687,0.00016712,2]
[351232394,1738460965912,-500.0,0.00016712,2]
[351232395,1738460965943,-1532.95,0.00016712,2]
[351232396,1738460965970,-505.63008925,0.00016712,2]
[351232397,1738460966004,-713.29268317,0.00016712,2]
[351232449,1738461032028,-268.372603,0.00015816,2]
[351232451,1738461032038,-500.81904919,0.00016438,2]
[351232453,1738461032047,-1698.08,0.00016438,2]
[351232455,1738461032056,-500.0,0.00016438,2]
[351232457,1738461032066,-634.19726458,0.00016438,2]
[351232459,1738461032075,-500.0,0.00016438,2]
[351232461,1738461032084,-501.07247927,0.00016438,2]
[351232463,1738461032093,-507.7389605,0.00016438,2]
[351232465,1738461032102,-504.99967242,0.00016438,2]
[351232467,1738461032111,-504.47853764,0.00016438,2]
[351232469,1738461032120,-506.47461413,0.00016438,2]
[351232471,1738461032129,-500.81672919,0.00016438,2]
[351232473,1738461032139,-500.0,0.00016438,2]
[351232475,1738461032148,-500.0,0.00016438,2]
[351232477,1738461032158,-500.0,0.00016438,2]
[351232479,1738461032167,-502.02526665,0.00016438,2]
[351232481,1738461032177,-500.99123305,0.00016438,2]
[351232483,1738461032186,-939.65,0.00016438,2]
[351232485,1738461032195,-506.32837874,0.00016438,2]
[351232486,1738461032205,-500.0,0.00016438,2]
[351232487,1738461032215,-506.38168936,0.00016438,2]
[351232488,1738461032224,-190.05213036,0.00016438,2]
[351232489,1738461032234,-504.33513687,0.00016438,2]
[351232490,1738461032243,-504.48995907,0.00016438,2]
[351232491,1738461032252,-562.23,0.00016438,2]
[351232492,1738461032262,-500.0,0.00016438,2]
[351232493,1738461032272,-500.0,0.00016438,2]
[351232494,1738461032281,-502.68275942,0.00016438,2]
[351232495,1738461032291,-503.45325406,0.00016438,2]
[351232496,1738461032300,-500.0,0.00016438,2]
[351232497,1738461032310,-500.0,0.00016438,2]
[351232498,1738461032319,-984.43,0.00016438,2]
[351232499,1738461032328,-500.0,0.00016438,2]
[351232500,1738461032337,-866.8,0.00016438,2]
[351232501,1738461032347,-1906.73,0.00016438,2]
[351232502,1738461032356,-504.14579301,0.00016438,2]
[351232503,1738461032366,-328.56154725,0.00016438,2]
[351232504,1738461032375,-292.61697736,0.00016438,2]
[351232505,1738461032385,-500.0,0.00016438,2]
[351232506,1738461032394,-503.67697064,0.00016438,2]
[351232507,1738461032404,-463.45570875,0.00016438,2]
[351232508,1738461032414,-500.0,0.00016438,2]
[351232509,1738461032424,-500.0,0.00016438,2]
[351232510,1738461032434,-503.89136021,0.00016438,2]
[351232511,1738461032443,-502.10858534,0.00016438,2]
[351232512,1738461032452,-4012.07,0.00016438,2]
[351232513,1738461032461,-9214.35,0.00016438,2]
[351232514,1738461032471,-500.0,0.00016438,2]
[351232515,1738461032481,-1698.08,0.00016575,2]
[351232516,1738461032491,-500.0,0.00016575,2]
[351232517,1738461032501,-500.0,0.00016575,2]
[351232518,1738461032511,-500.0,0.00016575,2]
[351232519,1738461032520,-939.65,0.00016575,2]
[351232520,1738461032530,-100.21141433,0.00016575,2]
[351232521,1738461032543,-517.94184301,0.00016575,2]
[351232522,1738461032552,-562.23,0.00016575,2]
[351232523,1738461032561,-500.0,0.00016575,2]
[351232524,1738461032570,-501.68463709,0.00016575,2]
[351232525,1738461032579,-500.0,0.00016575,2]
[351232526,1738461032589,-42.92344377,0.00016575,2]
[351232527,1738461032601,-457.07655623,0.00016575,2]
[351232528,1738461032611,-984.43,0.00016575,2]
[351232529,1738461032620,-502.84052939,0.00016575,2]
[351232530,1738461032630,-866.8,0.00016575,2]
[351232531,1738461032639,-1906.73,0.00016575,2]
[351232532,1738461032649,-500.0,0.00016575,2]
[351232533,1738461032658,-500.0,0.00016575,2]
[351232534,1738461032667,-503.84293119,0.00016575,2]
[351232535,1738461032677,-4012.07,0.00016575,2]
[351232536,1738461032686,-9214.35,0.00016575,2]
[351232537,1738461032695,-500.0,0.00016575,2]
[351232538,1738461032704,-688.8113879,0.00016711,2]
[351232539,1738461032714,-246.27036138,0.00016712,2]
[351232540,1738461032723,-500.0,0.00016712,2]
[351232541,1738461032734,-576.99258275,0.00016712,2]
[351232542,1738461032743,-504.69297197,0.00016712,2]
[351232543,1738461032753,-500.0,0.00016712,2]
[351232544,1738461032762,-645.92184938,0.00016712,2]
[351232545,1738461032771,-534.65995418,0.00016712,2]
[351232546,1738461032781,-515.82376531,0.00016712,2]
[351232547,1738461032790,-500.0,0.00016712,2]
[351232548,1738461032800,-519.58,0.00016712,2]
[351232549,1738461032809,-500.0,0.00016712,2]
[351232550,1738461032818,-506.2077791,0.00016712,2]
[351232551,1738461032827,-500.0,0.00016712,2]
[351232552,1738461032839,-500.0,0.00016712,2]
[351232553,1738461032849,-500.0,0.00016712,2]
[351232554,1738461032858,-578.64,0.00016712,2]
[351232555,1738461032867,-500.0,0.00016712,2]
[351232556,1738461032877,-500.0,0.00016712,2]
[351232557,1738461032887,-647.22894071,0.00016712,2]
[351232558,1738461032896,-192.74652158,0.00016712,2]
[351232559,1738461032905,-1567.03,0.00016712,2]
[351232560,1738461032914,-500.0,0.00016712,2]
[351232561,1738461032924,-3985.31,0.00016712,2]
[351232562,1738461032934,-211.71901055,0.00016712,2]
[351232563,1738461032943,-500.0,0.00016712,2]
[351232564,1738461032952,-500.0,0.00016712,2]
[351232565,1738461032962,-167.32827956,0.00016712,2]
[351232566,1738461032972,-500.0,0.00016712,2]
[351232567,1738461032980,-500.0,0.00016712,2]
[351232568,1738461032990,-500.0,0.00016712,2]
[351232569,1738461032999,-500.0,0.00016712,2]
[351232570,1738461033009,-500.0,0.00016712,2]
[351232571,1738461033018,-304.62861784,0.00016712,2]
[351232572,1738461033027,-500.0,0.00016712,2]
[351232573,1738461033036,-1698.08,0.00016712,2]
[351232574,1738461033046,-500.0,0.00016712,2]
[351232575,1738461033056,-500.0,0.00016712,2]
[351232576,1738461033066,-500.0,0.00016712,2]
[351232577,1738461033076,-939.65,0.00016712,2]
[351232578,1738461033086,-562.23,0.00016712,2]
[351232579,1738461033095,-500.0,0.00016712,2]
[351232580,1738461033105,-500.0,0.00016712,2]
[351232581,1738461033114,-500.0,0.00016712,2]
[351232582,1738461033123,-984.43,0.00016712,2]
[351232583,1738461033133,-866.8,0.00016712,2]
[351232584,1738461033143,-1906.73,0.00016712,2]
[351232585,1738461033153,-500.0,0.00016712,2]
[351232586,1738461033163,-500.0,0.00016712,2]
[351232587,1738461033173,-4012.07,0.00016712,2]
[351232588,1738461033183,-9214.35,0.00016712,2]
[351232589,1738461033192,-514.80015303,0.00016712,2]
[351232590,1738461033202,-203.2137257,0.00016784,2]
[351232591,1738461033212,-620.89685,0.00016784,2]
[351232592,1738461033222,-500.9325174,0.00016848,2]
[351232593,1738461033231,-501.86845859,0.00016848,2]
[351232594,1738461033241,-502.2563801,0.00016848,2]
[351232595,1738461033251,-506.51754166,0.00016848,2]
[351232596,1738461033261,-500.76141833,0.00016848,2]
[351232597,1738461033270,-501.27632158,0.00016848,2]
[351232598,1738461033280,-501.14485452,0.00016848,2]
[351232599,1738461033290,-500.0,0.00016848,2]
[351232600,1738461033300,-500.0,0.00016848,2]
[351232601,1738461033310,-500.0,0.00016848,2]
[351232602,1738461033319,-500.0,0.00016848,2]
[351232603,1738461033329,-500.0,0.00016848,2]
[351232604,1738461033338,-500.0,0.00016848,2]
[351232605,1738461033348,-500.0,0.00016848,2]
[351232606,1738461033357,-502.12032317,0.00016848,2]
[351232607,1738461033368,-500.0,0.00016848,2]
[351232608,1738461033378,-501.77231324,0.00016848,2]
[351232609,1738461033387,-500.98259632,0.00016848,2]
[351232610,1738461033396,-501.71243684,0.00016848,2]
[351232611,1738461033406,-506.00422722,0.00016848,2]
[351232612,1738461033416,-3573.74,0.00016848,2]
[351232613,1738461033425,-501.06089218,0.00016848,2]
[351232614,1738461033435,-500.61390552,0.00016848,2]
[351232615,1738461033444,-151.0,0.00016849,2]
[351232616,1738461033454,-151.0,0.00016849,2]
[351232617,1738461033464,-173.334725,0.00016849,2]
[351232618,1738461033474,-173.334725,0.00016849,2]
[351232619,1738461033483,-618.33680946,0.00016849,2]
[351232620,1738461033493,-500.0,0.00016849,2]
[351232621,1738461033502,-516.25856299,0.00016849,2]
[351232622,1738461033513,-509.83554455,0.00016849,2]
[351232623,1738461033522,-500.0,0.00016849,2]
[351232624,1738461033533,-504.63527713,0.00016849,2]
[351232625,1738461033543,-502.83897241,0.00016849,2]
[351232626,1738461033553,-500.0,0.00016849,2]
[351232627,1738461033562,-500.0,0.00016849,2]
[351232628,1738461033572,-268.3958217,0.00016849,2]
[351232629,1738461033582,-500.0,0.00016849,2]
[351232630,1738461033591,-500.0,0.00016849,2]
[351232631,1738461033600,-500.0,0.00016849,2]
[351232632,1738461033609,-502.76441837,0.00016849,2]
[351232633,1738461033619,-223.98529219,0.00016849,2]
[351232634,1738461033628,-500.0,0.00016849,2]
[351232635,1738461033638,-500.0,0.00016849,2]
[351232636,1738461033647,-500.0,0.00016849,2]
[351232637,1738461033656,-519.58,0.00016849,2]
[351232638,1738461033665,-161.05101844,0.00016849,2]
[351232639,1738461033675,-500.0,0.00016849,2]
[351232640,1738461033685,-500.0,0.00016849,2]
[351232641,1738461033695,-500.0,0.00016849,2]
[351232642,1738461033705,-578.64,0.00016849,2]
[351232643,1738461033714,-504.77302023,0.00016849,2]
[351232644,1738461033724,-500.0,0.00016849,2]
[351232645,1738461033733,-1567.03,0.00016849,2]
[351232646,1738461033743,-500.0,0.00016849,2]
[351232647,1738461033752,-3985.31,0.00016849,2]
[351232648,1738461033761,-500.0,0.00016849,2]
[351232649,1738461033770,-500.0,0.00016849,2]
[351232650,1738461033780,-500.0,0.00016849,2]
[351232651,1738461033789,-524.59,0.00016849,2]
[351232652,1738461033799,-500.0,0.00016849,2]
[351232653,1738461033809,-434.52348797,0.00016849,2]
[351232654,1738461033819,-500.0,0.00016849,2]
[351232655,1738461033828,-500.0,0.00016849,2]
[351232656,1738461033840,-206.57201,0.00016849,2]
[351232657,1738461033851,-1698.08,0.00016849,2]
[351232658,1738461033861,-500.0,0.00016849,2]
[351232659,1738461033870,-500.0,0.00016849,2]
[351232660,1738461033881,-500.0,0.00016849,2]
[351232661,1738461033890,-939.65,0.00016849,2]
[351232662,1738461033900,-562.23,0.00016849,2]
[351232663,1738461033910,-500.0,0.00016849,2]
[351232664,1738461033922,-200.76372738,0.00016849,2]
[351232665,1738461033932,-500.0,0.00016849,2]
[351232666,1738461033942,-984.43,0.00016849,2]
[351232667,1738461033952,-866.8,0.00016849,2]
[351232668,1738461033962,-1906.73,0.00016849,2]
[351232669,1738461033973,-177.04898999,0.00016849,2]
[351232670,1738461033983,-500.0,0.00016849,2]
[351232671,1738461033992,-4012.07,0.00016849,2]
[351232672,1738461034001,-9214.35,0.00016849,2]
[351232673,1738461034011,-500.0,0.00016932,2]
[351232674,1738461034020,-500.0,0.00016985,2]
[351232675,1738461034029,-500.0,0.00016985,2]
[351232676,1738461034039,-500.0,0.00016985,2]
[351232677,1738461034048,-500.0,0.00016985,2]
[351232678,1738461034058,-500.0,0.00016985,2]
[351232679,1738461034067,-504.02723468,0.00016985,2]
[351232680,1738461034076,-500.0,0.00016985,2]
[351232681,1738461034085,-500.0,0.00016985,2]
[351232682,1738461034094,-3573.74,0.00016985,2]
[351232683,1738461034103,-151.0,0.00016985,2]
[351232684,1738461034113,-667.745009,0.00016985,2]
[351232685,1738461034122,-667.745009,0.00016985,2]
[351232686,1738461034131,-151.0,0.00016985,2]
[351232687,1738461034141,-173.334725,0.00016986,2]
[351232688,1738461034150,-173.334725,0.00016986,2]
[351232689,1738461034159,-500.0,0.00016986,2]
[351232690,1738461034169,-500.0,0.00016986,2]
[351232691,1738461034178,-527.34303864,0.00016986,2]
[351232692,1738461034188,-500.0,0.00016986,2]
[351232693,1738461034197,-500.0,0.00016986,2]
[351232694,1738461034206,-151.04692328,0.00016986,2]
[351232695,1738461034216,-500.0,0.00016986,2]
[351232696,1738461034226,-500.0,0.00016986,2]
[351232697,1738461034236,-500.0,0.00016986,2]
[351232698,1738461034246,-500.0,0.00016986,2]
[351232699,1738461034360,-519.58,0.00016986,2]
[351232700,1738461034370,-500.0,0.00016986,2]
[351232701,1738461034380,-500.0,0.00016986,2]
[351232702,1738461034389,-500.0,0.00016986,2]
[351232703,1738461034399,-151.0,0.00016986,2]
[351232704,1738461034408,-578.64,0.00016986,2]
[351232705,1738461034417,-500.0,0.00016986,2]
[351232706,1738461034427,-1567.03,0.00016986,2]
[351232707,1738461034437,-272.0,0.00016986,2]
[351232708,1738461034447,-3985.31,0.00016986,2]
[351232709,1738461034457,-151.0,0.00016986,2]
[351232710,1738461034466,-500.0,0.00016986,2]
[351232711,1738461034476,-500.0,0.00016986,2]
[351232712,1738461034486,-346.19817575,0.00016986,2]
[351232713,1738461034495,-545.48927225,0.00016986,2]
[351232714,1738461034506,-151.0,0.00016986,2]
[351232715,1738461034515,-151.0,0.00016986,2]
[351232716,1738461034524,-500.0,0.00016986,2]
[351232717,1738461034533,-500.0,0.00016986,2]
[351232718,1738461034542,-1698.08,0.00016986,2]
[351232719,1738461034551,-500.0,0.00016986,2]
[351232720,1738461034561,-197.76028,0.00016986,2]
[351232721,1738461034571,-500.0,0.00016986,2]
[351232722,1738461034580,-197.76028,0.00016986,2]
[351232723,1738461034590,-500.0,0.00016986,2]
[351232724,1738461034600,-939.65,0.00016986,2]
[351232725,1738461034609,-562.23,0.00016986,2]
[351232726,1738461034619,-547.45025553,0.00016986,2]
[351232727,1738461034628,-500.0,0.00016986,2]
[351232728,1738461034637,-984.43,0.00016986,2]
[351232729,1738461034647,-866.8,0.00016986,2]
[351232730,1738461034656,-1906.73,0.00016986,2]
[351232731,1738461034665,-500.0,0.00016986,2]
[351232732,1738461034675,-4012.07,0.00016986,2]
[351232733,1738461034685,-9214.35,0.00016986,2]
[351232734,1738461034695,-151.0,0.00016997,2]
[351232735,1738461034704,-264.156017,0.00016997,2]
[351232736,1738461034714,-151.790811,0.00016998,2]
[351232737,1738461034724,-151.0,0.00016998,2]
[351232738,1738461034734,-206.178088,0.00016998,2]
[351232739,1738461034743,-173.334725,0.00017,2]
[351232740,1738461034752,-173.334725,0.00017,2]
[351232741,1738461034762,-203.2137257,0.00017007,2]
[351232742,1738461034772,-1000.0,0.00017021,2]
[351232743,1738461034781,-152.253339,0.00017108,2]
[351232744,1738461034791,-500.0,0.00017121,2]
[351232745,1738461034800,-500.0,0.00017121,2]
[351232746,1738461034810,-3573.74,0.00017121,2]
[351232747,1738461034824,-508.26407857,0.00017122,2]
[351232748,1738461034844,-504.28852475,0.00017122,2]
[351232749,1738461034862,-506.72197909,0.00017122,2]
[351232750,1738461034872,-505.04421203,0.00017122,2]
[351232751,1738461034882,-500.0,0.00017122,2]
[351232752,1738461034891,-151.0,0.00017123,2]
[351232753,1738461034900,-500.0,0.00017123,2]
[351232754,1738461034909,-518.71031295,0.00017123,2]
[351232755,1738461034918,-500.0,0.00017123,2]
[351232756,1738461034928,-500.0,0.00017123,2]
[351232757,1738461034937,-500.0,0.00017123,2]
[351232758,1738461034946,-500.0,0.00017123,2]
[351232759,1738461034955,-500.0,0.00017123,2]
[351232760,1738461034964,-500.0,0.00017123,2]
[351232761,1738461034973,-519.58,0.00017123,2]
[351232762,1738461034983,-500.0,0.00017123,2]
[351232763,1738461034992,-500.0,0.00017123,2]
[351232764,1738461035001,-500.0,0.00017123,2]
[351232765,1738461035011,-578.64,0.00017123,2]
[351232766,1738461035020,-500.0,0.00017123,2]
[351232767,1738461035029,-1567.03,0.00017123,2]
[351232768,1738461035039,-3985.31,0.00017123,2]
[351232769,1738461035048,-500.0,0.00017123,2]
[351232770,1738461035057,-500.0,0.00017123,2]
[351232771,1738461035066,-500.0,0.00017123,2]
[351232772,1738461035075,-563.79593827,0.00017123,2]
[351232773,1738461035084,-1698.08,0.00017123,2]
[351232774,1738461035093,-500.0,0.00017123,2]
[351232775,1738461035103,-500.0,0.00017123,2]
[351232776,1738461035112,-529.0184134,0.00017123,2]
[351232777,1738461035121,-939.65,0.00017123,2]
[351232778,1738461035131,-562.23,0.00017123,2]
[351232779,1738461035140,-402.8777925,0.00017123,2]
[351232780,1738461035150,-984.43,0.00017123,2]
[351232781,1738461035159,-866.8,0.00017123,2]
[351232782,1738461035168,-1906.73,0.00017123,2]
[351232783,1738461035178,-500.0,0.00017123,2]
[351232784,1738461035188,-4012.07,0.00017123,2]
[351232785,1738461035197,-9214.35,0.00017123,2]
[351232786,1738461035206,-151.0,0.000172,2]
[351232787,1738461035215,-203.2137257,0.00017231,2]
[351232788,1738461035224,-500.0,0.00017258,2]
[351232789,1738461035234,-500.0,0.00017258,2]
[351232790,1738461035242,-3573.74,0.00017258,2]
[351232791,1738461035251,-161.72171185,0.00017259,2]
[351232792,1738461035261,-151.804206,0.0001726,2]
[351232793,1738461035270,-206.178088,0.0001726,2]
[351232794,1738461035279,-151.0,0.0001726,2]
[351232795,1738461035288,-173.334725,0.0001726,2]
[351232796,1738461035298,-173.334725,0.0001726,2]
[351232798,1738461035307,-500.0,0.0001726,2]
[351232800,1738461035316,-500.0,0.0001726,2]
[351232801,1738461035326,-500.0,0.0001726,2]
[351232802,1738461035335,-500.0,0.0001726,2]
[351232803,1738461035344,-500.0,0.0001726,2]
[351232804,1738461035353,-500.0,0.0001726,2]
[351232805,1738461035362,-500.0,0.0001726,2]
[351232806,1738461035372,-519.58,0.0001726,2]
[351232807,1738461035381,-500.0,0.0001726,2]
[351232808,1738461035391,-500.0,0.0001726,2]
[351232809,1738461035400,-500.0,0.0001726,2]
[351232810,1738461035409,-578.64,0.0001726,2]
[351232811,1738461035419,-1567.03,0.0001726,2]
[351232812,1738461035428,-3985.31,0.0001726,2]
[351232813,1738461035437,-500.0,0.0001726,2]
[351232814,1738461035447,-500.0,0.0001726,2]
[351232815,1738461035456,-667.745009,0.0001726,2]
[351232816,1738461035465,-500.0,0.0001726,2]
[351232817,1738461035474,-667.745009,0.0001726,2]
[351232818,1738461035483,-151.0,0.0001726,2]
[351232819,1738461035493,-1698.08,0.0001726,2]
[351232820,1738461035503,-500.0,0.0001726,2]
[351232821,1738461035512,-500.0,0.0001726,2]
[351232822,1738461035522,-939.65,0.0001726,2]
[351232823,1738461035531,-562.23,0.0001726,2]
[351232824,1738461035541,-984.43,0.0001726,2]
[351232825,1738461035550,-866.8,0.0001726,2]
[351232826,1738461035559,-1906.73,0.0001726,2]
[351232827,1738461035569,-500.0,0.0001726,2]
[351232828,1738461035578,-4012.07,0.0001726,2]
[351232829,1738461035587,-9214.35,0.0001726,2]
[351232830,1738461035597,-261.29911341,0.00017346,2]
[351232831,1738461035606,-153.0,0.00017356,2]
[351232832,1738461035615,-500.0,0.00017395,2]
[351232833,1738461035625,-500.0,0.00017395,2]
[351232834,1738461035634,-3573.74,0.00017395,2]
[351232835,1738461035643,-151.0,0.00017396,2]
[351232836,1738461035653,-151.0,0.00017396,2]
[351232837,1738461035663,-151.0,0.00017396,2]
[351232838,1738461035672,-151.0,0.00017396,2]
[351232839,1738461035682,-151.0,0.00017396,2]
[351232840,1738461035691,-197.76028,0.00017396,2]
[351232841,1738461035700,-197.76028,0.00017396,2]
[351232842,1738461035709,-151.0,0.00017397,2]
[351232843,1738461035719,-206.178088,0.00017397,2]
[351232844,1738461035728,-173.334725,0.00017397,2]
[351232845,1738461035737,-173.334725,0.00017397,2]
[351232846,1738461035747,-500.0,0.00017397,2]